Cogmind - Beta 12 @@@ ROGUE MODE // 2023.11.27 @ 23:05:11 Player: veb_robotron Result: Destroyed by G-47 Trooper with Particle Gun Performance ------------- Evolutions (1) 500 Regions Visited (2) 400 Robots Destroyed (21) 105 Value Destroyed (501) 501 Prototype IDs (3) 60 Alien Tech Used (0) 0 Bonus (0) 0 TOTAL SCORE: 1566 Bonus ------- None Cogmind --------- Core Integrity 0/400 Matter 273/300 Energy 93/100 System Corruption 0% Temperature Hot (273) Movement Rolling (80) Location -9/Materials Parts ------- > --- POWER (1) -------- (None) > --- PROPULSION (3) --- Wheel > --- UTILITY (3) ------ Small Storage Unit > --- WEAPON (2) ------- Medium Laser Light Cannon > --- INVENTORY (8) ---- Improved Ion Engine Improved Ion Engine Melee Analysis Suite Tractor Beam Tractor Beam EMP Blaster Peak State ------------ > --- POWER ------------ Improved Ion Engine > --- PROPULSION ------- Wheel Wheel > --- UTILITY ---------- Small Storage Unit Seismic Detector Weapon Shielding > --- WEAPON ----------- Medium Laser Medium Laser > --- INVENTORY -------- Improved Ion Engine Improved Ion Engine Melee Analysis Suite Tractor Beam Tractor Beam Light Cannon [Rating: 10] Favorites ----------- Power Light Ion Engine Engine Light Ion Engine Propulsion Aluminum Leg Leg Aluminum Leg Wheel Wheel Utility Seismic Detector Device Seismic Detector Storage Small Storage Unit Protection Weapon Shielding Weapon Medium Laser Energy Gun Medium Laser Ballistic Cannon Light Cannon Build | -11 -10 -9 ------- Run | Jun Mat Mat Slots Evolved 2 | . . 2 Power . | . . . Propulsion 1 | . . 1 Utility 1 | . . 1 Weapon . | . . . Parts Attached 19 | 7 2 10 Power 4 | 1 1 2 Engine 4 | 1 1 2 Core . | . . . Reactor . | . . . Propulsion 5 | 2 . 3 Treads . | . . . Leg 3 | 2 . 1 Wheel 2 | . . 2 Hover . | . . . Flight . | . . . Utility 6 | 1 1 4 Device 2 | . 1 1 Storage 3 | 1 . 2 Processor . | . . . Hackware . | . . . Protection 1 | . . 1 Artifact . | . . . Weapon 4 | 3 . 1 Energy Gun 3 | 3 . . Energy Cannon . | . . . Ballistic Gun . | . . . Ballistic Cannon 1 | . . 1 Launcher . | . . . Special Weapon . | . . . Impact Weapon . | . . . Slashing Weapon . | . . . Piercing Weapon . | . . . Special Melee Weapon . | . . . Unidentified Prototypes . | . . . Parts Lost 11 | . . 11 Power 3 | . . 3 Propulsion 4 | . . 4 Utility 3 | . . 3 Weapon 1 | . . 1 Highest Loss Streak 6 | . . 6 To Critical Strikes . | . . . Average Slot Usage (%) 90 | . 97 81 Engine 12 | . 14 10 Leg 21 | . 28 11 Wheel 3 | . . 8 Device 12 | . 11 13 Storage 11 | . 14 8 Protection 3 | . . 7 Energy Gun 24 | . 28 20 Naked Turns . | . . . Heaviest Build 29 | 12 13 29 Greatest Support 30 | 20 20 30 Greatest Overweight (x) 4 | 1 . 4 Average Overweight (x) . | . . . Largest Inventory Capacity 15 | 8 8 15 Average Capacity 8 | 7 8 10 Most Carried 8 | 4 8 7 Average Carried 6 | 2 7 5 Final Capacity 8 | 8 8 8 Final Carried 8 | 4 8 6 Class Distribution -------------------- 100% | Mutant Dominant Class ---------------- Mutant | -10/Materials Mutant | -9/Materials Resources | -11 -10 -9 ----------- Run | Jun Mat Mat Matter Collected 447 | 154 136 157 Remotely . | . . . Salvage Created 590 | . 198 392 Parts 40 | . 19 21 Haulers Intercepted . | . . . Recyclers Shooed 1 | . 1 . Parts Field Recycled . | . . . Retrieved Matter . | . . . Parts Self-Destructed . | . . . Prevented . | . . . Kills | -11 -10 -9 ------- Run | Jun Mat Mat Combat Hostiles Destroyed 16 | . 7 9 Guns 13 | . 7 6 Cannons 3 | . . 3 Classes Destroyed 8 | . 5 3 Worker 1 | . 1 . Builder 1 | . 1 . Mechanic 1 | . . 1 Watcher 2 | . 1 1 Swarmer 6 | . 6 . Grunt 8 | . 1 7 Duelist 1 | . . 1 Sentry 1 | . . 1 Best Kill Streak 5 | . 5 5 Combat Bots Only 4 | . 4 4 Max Kills in Single Turn 2 | . 2 1 Gunslinging . | . . . Exploded . | . . . Melee . | . . . Uniques/NPCs Destroyed . | . . . Combat | -11 -10 -9 -------- Run | Jun Mat Mat Damage Taken 1191 | . 255 936 Core 472 | . 63 409 Absorbed by Shields . | . . . Redirected to Shielding 53 | . . 53 Core Remaining (%) 87 | 100 74 . Volleys Fired 63 | . 23 40 Largest 2 | . 2 2 Hottest 100 | . 100 100 Shots Fired 126 | . 46 80 Gun 117 | . 46 71 Cannon 9 | . . 9 Launcher . | . . . Special . | . . . Kinetic 9 | . . 9 Thermal 117 | . 46 71 Explosive . | . . . Electromagnetic . | . . . Robot Hit Streak 6 | . 6 6 Robot Miss Streak 5 | . 4 5 Penetration Max . | . . . Secondary Targets 1 | . 1 . Max Gunslinging Chain 1 | . 1 . Shots Hit Robots 68 | . 23 45 Core Hits 36 | . 12 24 Critical Kills . | . . . Critical Parts Destroyed . | . . . Critical Strikes 5 | . 1 4 Burn 5 | . 1 4 Melee Attacks . | . . . Impact . | . . . Slashing . | . . . Piercing . | . . . Sneak Attacks . | . . . Combat Hostiles . | . . . Follow-up Attacks . | . . . Damage Inflicted 998 | . 372 626 Guns 863 | . 372 491 Cannons 135 | . . 135 Explosions . | . . . Melee . | . . . Ramming . | . . . Kinetic 135 | . . 135 Thermal 863 | . 372 491 Explosive . | . . . Electromagnetic . | . . . Impact . | . . . Slashing . | . . . Piercing . | . . . Highest Corruption . | . . . Average Corruption . | . . . Corruption Purged . | . . . Corruption Blocked . | . . . Overload Shots . | . . . Overflow Damage . | . . . Projectiles . | . . . Explosions . | . . . Melee . | . . . Knockbacks 2 | . . 2 Impact . | . . . Kinetic 2 | . . 2 Secondary . | . . . Self-Inflicted Damage . | . . . Shots . | . . . Rammed . | . . . Targets Rammed . | . . . Kicked . | . . . Crushed . | . . . Highest Temperature 497 | . 471 497 Average Temperature 214 | . 224 206 Received Heat Transfer 372 | . 36 336 Effects 11 | . 4 7 Shutdowns 4 | . 2 2 Energy Bleed 4 | . 1 3 Matter Decay 2 | . . 2 Damage (minor) 1 | . 1 . Siege Activations . | . . . Robots Corrupted . | . . . Combat Hostiles . | . . . Parts Fried . | . . . Impact Corruptions . | . . . Robots Melted . | . . . Combat Hostiles . | . . . Parts Melted 14 | . 4 10 Heat Transferred 2923 | . 1184 1739 Parts Sabotaged . | . . . Parts Stolen . | . . . Parts Stripped . | . . . Power Chain Reactions . | . . . Missiles Intercepted . | . . . Alert | -11 -10 -9 ------- Run | Jun Mat Mat Peak Influence 263 | . 215 263 Initial 90 | . . 90 Average 101 | . 93 137 Maximum Alert Level 1 | . 1 1 Low Security (%) 87 | 100 82 92 Level 1 12 | . 17 7 Level 2 . | . . . Level 3 . | . . . Level 4 . | . . . Level 5 . | . . . High Security . | . . . Max Security . | . . . Squads Dispatched 2 | . 1 1 Investigation 2 | . 1 1 Extermination . | . . . Reinforcement . | . . . Assault . | . . . Garrison . | . . . Intercept . | . . . Searches Triggered . | . . . Construction Impeded . | . . . Haulers Reinforced . | . . . Active Scanning Responses . | . . . Cargo Convoy Interrupts . | . . . Stealth | -11 -10 -9 --------- Run | Jun Mat Mat Distress Signals 3 | . 1 2 Communications Jammed . | . . . Distress Signals . | . . . Times Spotted 27 | . 9 18 Peak Tracking Total 9 | . 5 9 Tactical Retreats . | . . . Traps | -11 -10 -9 ------- Run | Jun Mat Mat Traps Triggered 1 | . 1 . Indirectly . | . . . Trap Hack Attempts . | . . . Triggered . | . . . Disarmed . | . . . Reprogrammed . | . . . Reused . | . . . Traps Extracted . | . . . Installed . | . . . Triggered . | . . . Machines | -11 -10 -9 ---------- Run | Jun Mat Mat Machines Disabled . | . . . Max in Single Turn . | . . . Machines Repaired . | . . . Machines Sabotaged . | . . . Overloaded Fab Kills . | . . . Hacking | -11 -10 -9 --------- Run | Jun Mat Mat Machines Accessed 5 | . 3 2 Terminals 4 | . 3 1 Fabricators . | . . . Repair Stations . | . . . Recycling Units . | . . . Scanalyzers 1 | . . 1 Garrison Access . | . . . Total Hacks 17 | . 12 5 Successful 12 | . 8 4 Failed 5 | . 4 1 Catastrophic . | . . . Database Lockouts . | . . . Manual 1 | . 1 . Terminals 13 | . 12 1 Fabricators . | . . . Repair Stations . | . . . Recycling Units . | . . . Scanalyzers 4 | . . 4 Garrison Access . | . . . Terminal Hacks 7 | . 7 . Prototype ID Bank 2 | . 2 . Level Access Points 1 | . 1 . Alert Level 2 | . 2 . Locate Traps 1 | . 1 . Dispatch Records 1 | . 1 . Fabricator Hacks . | . . . Repair Station Hacks . | . . . Recycling Unit Hacks . | . . . Scanalyzer 4 | . . 4 Insert Component 2 | . . 2 Analyze 2 | . . 2 Garrison Access Hacks . | . . . Unauthorized Hacks 1 | . 1 . Terminals 1 | . 1 . Track 1 | . 1 . Fabricators . | . . . Repair Stations . | . . . Recycling Units . | . . . Scanalyzers . | . . . Garrison Access . | . . . Data Cores Recovered . | . . . Used . | . . . Hacking Detections 5 | . 3 2 Full Trace Events 1 | . . 1 Feedback Events . | . . . Feedback Blocked . | . . . Robot Schematics Acquired . | . . . Robots Built . | . . . Authchips . | . . . Time . | . . . Total Robot Build Rating . | . . . Part Schematics Acquired 1 | . . 1 Parts Built . | . . . Authchips . | . . . Time . | . . . Total Part Build Rating . | . . . Parts Repaired . | . . . Time . | . . . Parts Recycled . | . . . Recycled Matter . | . . . Retrieved Matter . | . . . Retrieved Components . | . . . Parts Scanalyzed 2 | . . 2 Part Schematics Acquired 1 | . . 1 Parts Damaged . | . . . Bothacking | -11 -10 -9 ------------ Run | Jun Mat Mat Used RIF Installer . | . . . Robots Hacked . | . . . Non-combat . | . . . Combat . | . . . Robot Hacks Applied . | . . . Relay Couplers Released . | . . . Fabnet Peak Effective % . | . . . Robots Rewired . | . . . Allies Hacked . | . . . Hacks Repelled . | . . . Allies | -11 -10 -9 -------- Run | Jun Mat Mat Total Allies . | . . . Largest Group . | . . . Highest-Rated Group . | . . . Highest-Rated Ally . | . . . Total Orders . | . . . Ally Attacks . | . . . Total Damage . | . . . Kills . | . . . Allies Corrupted . | . . . Allies Melted . | . . . Intel | -11 -10 -9 ------- Run | Jun Mat Mat Robot Analysis Total . | . . . Derelict Logs Recovered . | . . . Drone Launches . | . . . Drone Recoveries . | . . . Exploration | -11 -10 -9 ------------- Run | Jun Mat Mat Turns Passed 751 | 66 397 288 Spaces Moved 418 | 40 257 121 Core 19 | 4 . 15 Treads . | . . . Legs 334 | 36 257 41 Wheels 65 | . . 65 Hover . | . . . Flight . | . . . Fastest Speed 50 | 50 120 80 Average Speed 119 | 123 120 115 Slowest Speed 250 | 190 120 250 Overloaded Moves . | . . . Propulsion Burnouts . | . . . Robots Hopped . | . . . Cave-ins Triggered . | . . . Exploration Rate (%) 17 | 3 37 13 Regions Visited 2 Branch Regions . Pre-discovered Areas . | . . . Known Exits Taken 1 | . 1 . Unknown Exits Taken 1 | 1 . . Scrap Searched . | . . . Spaces Dug . | . . . Terrain Destroyed . | . . . Melee . | . . . Projectile . | . . . AOE . | . . . Terrain Rammed . | . . . Walls Destroyed . | . . . Machines Disabled . | . . . Actions | -11 -10 -9 --------- Run | Jun Mat Mat Total 547 | 56 302 189 Wait 16 | . 4 12 Move 416 | 39 256 121 Hop . | . . . Pick Up 26 | 10 11 5 Fast Attach 2 | . . 2 Attach 15 | 6 2 7 Detach . | . . . Swap 2 | 1 . 1 Drop 7 | . 6 1 Fire 63 | . 23 40 Melee . | . . . Ram . | . . . Kick . | . . . Crush . | . . . Escape Stasis . | . . . Rewire . | . . . Trap . | . . . Miscellaneous . | . . . Route ------- -11/Junkyard -10/Materials (discovered 3 exits: *Mat x3) -9/Materials History --------- Turn | Location | Event 18 | -11/Junkyard | Discovered new exit (range 16) 67 | -11/Junkyard | Entered Materials 318 | -10/Materials | Build established: Mutant 424 | -10/Materials | Discovered new exit (range 10) 431 | -10/Materials | Identified exit to Materials 464 | -10/Materials | Entered another Materials area 464 | -9/Materials | Evolved 2 slots: Propulsion x1, Utility x1 610 | -9/Materials | Lost 6 parts (2p3n1u) 715 | -9/Materials | Core integrity fell below 50% 715 | -9/Materials | Core integrity fell below 20% 752 | -9/Materials | Destroyed by G-47 Trooper with Particle Gun Last Messages --------------- Weapon Shielding destroyed. U-05 Engineer builds a Wall. G-47 Trooper destroyed. U-05 Engineer lays Concrete. R-06 Scavenger collects Aluminum Leg. Seismic Detector destroyed. U-05 Engineer lays Concrete. G-47 Trooper destroyed. U-05 Engineer builds a Wall. U-05 Engineer lays Concrete. R-06 Scavenger collects Sml. Laser. U-05 Engineer lays Concrete. G-47 Trooper knocked back. Imp. Ion Engine destroyed. U-05 Engineer lays Concrete. U-05 Engineer builds a Door. U-05 Engineer lays Concrete. G-34 Mercenary knocked back. R-06 Scavenger collects Heat Sink. U-05 Engineer builds a Wall. Map ----- +----------------------------------------------------+ | ?????????????????????? ?????????????????????????? | | ?????????????????????? ?????????????????????????? | | ???????????????????? ? ?????????????????????????? | | ???????????????????? ?????????????????????????? | | ????????????????????? ?????????????????????????? | | ????????????????????? ?????????????????????????? | | ????????????????????? ?????????????????????????? | | ????????????????????? #????????????????????????? | | ??????????????? ???? +????????????????????????? | | ???????????????? ??? #????????????????????????? | | ??????????????? ??? #????????????????????????? | | ??????????????? """ ??# #????????????????????????? | | ??????????????? """ ??#u#????????????????????????? | | ??????????????? """ ###%####?????????????????????? | | ????????????????#####;#g##;###???????????????????? | | ????????????????# ; % %r= ;#???????????????????? | | ????????????????# ; * ;##??????????????????? | | ???????????????## " u ; #??????????????????? | | ???????????????# " ; #??????????????????? | | ???????????????## " ;##??????????????????? | | ???????????????## " " #??????????????????? | | ???????????????# " w "##??????????????????? | | ???????????????## " "#???????????????????? | | ?????#######????#;#####+ ;""#???????????????????? | | ????"""""" #????## uu u ######+###?????????????? | | ?# """"""" #?????# @%! r ????????? | | ?# """"""" #?????#*** !%= g %= ????????? | | ?# """"""" #?????#*** % %g % ????????? | | ?# """"""" #?????# ?????????? | | ?# #?????# ########### #?????????? | | ?# #?????# #???????????????????????? | | ?# ####### #???????????????????????? | | ?#######+### % +???????????????????????? | | ?# % # #???????????????????????? | | ?# T # #######???????????????????????? | | ?# # #?????????????????????????????? | | ?# ####### # #?????????????????????????????? | | ## #?????## ## #?????????????????????????????? | | # #??????# ## #?????????????????????????????? | | # #??????# ## #?????????????????????????????? | | # #??????+ ## #?????????????????????????????? | | # #??????# #? ??????????????????????????????? | | # #??????# #?+??????????????????????????????? | | + #??????# #????????????????????????????????? | | # #??????# #????????????????????????????????? | | # #??????# #????????????????????????????????? | | # #??????# #????????????????????????????????? | | #####??????# +????????????????????????????????? | | #??????????? #????????????????????????????????? | | ##??????????? ?????????????????????????????????? | +----------------------------------------------------+ Best States ------------- Heat Dissipation 28 Energy Generation 12 Energy Capacity 265 Matter Stores 300 Matter Capacity 300 Sight Range 16 Robot Scan Range 14 Terrain Scan Density 10 Weapon Shielding 33 Evasion (%) 55 Item Schematics ----------------- Sml. Storage Unit | -9/Materials | Scanalyzed Robot Schematics ------------------ None Fabricated ------------ Nothing Alien Tech Used ----------------- None Achievements -------------- None Challenges ------------ None Game ------ Seed ActuatorThrowingDerivative Manual? 0 Play Time 00:12:26 Cumulative 31.3 hours Start 2023.11.27 @ 22:53:45 End 2023.11.27 @ 23:05:11 Sessions 1 Manual Loads 0 Difficulty Rogue Special Mode None Game No. 28 Rogue 28 Adventurer 0 Explorer 0 Win Type - Total 0 Types 0/0/0/0/0/0/0/0/0 Lore% 20 Gallery% 41 Achievement% 27 Wizard Run 0 Options --------- ASCII 0 Keyboard 0 Movement Numpad Keybinds 0 Fullscreen 1 Font 18/SmallcapsGlow Map View 76x50 Tactical HUD 0 Map Filters NONE Filters NONE Steam 1 RUN: 1361cd58-6710-430a-a5d7-8de29111fa4e